bitfinex-derivatives/quotes_BTCF0:USTF0_20260106
["timestamp","ask_amount","ask_price","bid_price","bid_amount"]
[1767693566606,0.0125371,93529.0,93516.0,0.010697]
[1767693568617,0.010695,93528.0,93516.0,0.010697]
[1767693568818,0.010695,93528.0,93513.0,0.010697]
[1767693569017,0.010696,93525.0,93511.0,0.010697]
[1767693569717,0.010696,93524.0,93511.0,0.010697]
[1767693570919,0.010696,93524.0,93509.0,0.083617]
[1767693571321,0.010696,93524.0,93511.0,0.010697]
[1767693571726,0.0125371,93527.0,93509.0,0.083617]
[1767693572807,0.0125371,93527.0,93509.0,0.094314]
[1767693573106,0.010696,93523.0,93509.0,0.094314]
[1767693573307,0.010696,93523.0,93510.0,0.010697]
[1767693574618,0.010696,93523.0,93511.0,0.010697]
[1767693574820,0.010696,93526.0,93512.0,0.010697]
[1767693576818,0.0125371,93527.0,93509.0,0.083617]
[1767693577322,0.0125371,93527.0,93515.0,0.010697]
[1767693577525,0.010695,93526.0,93515.0,0.010697]
[1767693578017,0.010696,93525.0,93509.0,0.083617]
[1767693578409,0.010696,93525.0,93509.0,0.09096]
[1767693578606,0.010696,93525.0,93509.0,0.07396]
[1767693579121,0.010696,93525.0,93512.0,0.010697]
[1767693580420,0.010696,93525.0,93511.0,0.010697]
[1767693580821,0.010696,93525.0,93512.0,0.010697]
[1767693581123,0.010695,93526.0,93509.0,0.09096]
[1767693582026,0.010695,93526.0,93508.0,0.01138929]
[1767693582221,0.0125371,93527.0,93514.0,0.010697]
[1767693583123,0.09662095,93530.0,93519.0,0.010696]
[1767693583325,0.10917366,93530.0,93519.0,0.010696]
[1767693583520,0.10917366,93530.0,93520.0,0.010696]
[1767693583931,0.10917366,93530.0,93518.0,0.010696]
[1767693585228,0.010695,93529.0,93518.0,0.010696]
[1767693585428,0.02324771,93529.0,93518.0,0.010696]
[1767693585816,0.02324771,93529.0,93515.0,0.010697]
[1767693586226,0.02324771,93529.0,93510.0,0.01138929]
[1767693586816,0.02324771,93529.0,93516.0,0.010697]
[1767693587115,0.01255271,93528.0,93516.0,0.010697]
[1767693587315,0.01255271,93528.0,93511.0,0.010697]
[1767693587521,0.01255271,93528.0,93519.0,0.010696]
[1767693588228,0.01255271,93528.0,93521.0,0.010696]
[1767693588529,0.09662095,93530.0,93521.0,0.010696]
[1767693588722,0.01255271,93532.0,93522.0,0.010696]
[1767693589319,0.01255271,93532.0,93514.0,0.010697]
[1767693589828,0.01255271,93532.0,93523.0,0.010696]
[1767693590019,0.01255271,93532.0,93516.0,0.010697]
[1767693590728,0.01255271,93532.0,93524.0,0.010696]
[1767693591528,0.01255271,93532.0,93525.0,0.010695]
[1767693592425,0.09096,93533.0,93525.0,0.010695]
[1767693592729,0.09096,93536.0,93524.0,0.010696]
[1767693592924,0.09096,93536.0,93518.0,0.1101996]
[1767693593931,0.09096,93536.0,93518.0,0.1041996]
[1767693594431,0.09096,93536.0,93524.0,0.010696]
[1767693594731,0.010694,93535.0,93522.0,0.010696]
[1767693595221,0.010695,93533.0,93522.0,0.010696]
[1767693595418,0.010695,93533.0,93520.0,0.010696]
[1767693596333,0.010694,93535.0,93521.0,0.010696]
[1767693597126,0.010695,93533.0,93518.0,0.09881031]
[1767693597332,0.010695,93533.0,93514.0,0.0110346]
[1767693597333,0.010695,93532.0,93520.0,0.010696]
[1767693597927,0.010695,93530.0,93516.0,0.010697]
[1767693598131,0.10959369,93530.0,93514.0,0.0110346]
[1767693598526,0.09889869,93530.0,93514.0,0.0110346]
[1767693600538,0.09889869,93530.0,93521.0,0.010696]
[1767693600733,0.01154146,93535.0,93523.0,0.010696]
[1767693600932,0.010695,93534.0,93521.0,0.010696]
[1767693601135,0.01154146,93535.0,93518.0,0.010696]
[1767693601439,0.01103994,93534.0,93518.0,0.010696]
[1767693601823,0.010695,93531.0,93514.0,0.0067306]
[1767693602033,0.01103994,93534.0,93519.0,0.010696]
[1767693602532,0.02173494,93534.0,93520.0,0.010696]
[1767693602938,0.01103994,93538.0,93514.0,0.09390259]
[1767693603140,0.01283216,93539.0,93521.0,0.09390259]
[1767693603338,0.010694,93538.0,93526.0,0.010695]
[1767693604031,0.02173394,93538.0,93526.0,0.010695]
[1767693604232,0.01103994,93537.0,93520.0,0.010696]
[1767693604426,0.09889869,93530.0,93515.0,0.09390259]
[1767693604834,0.010696,93524.0,93511.0,0.0063495]
[1767693605036,0.09889869,93521.0,93509.0,0.10459959]
[1767693605336,0.02173594,93525.0,93511.0,0.010697]
[1767693605641,0.09438474,93527.0,93514.0,0.010697]
[1767693605642,0.10542468,93527.0,93514.0,0.010697]
[1767693605937,0.10542468,93527.0,93514.0,0.09096]
[1767693606136,0.09889869,93530.0,93516.0,0.010697]
[1767693606137,0.12063363,93530.0,93516.0,0.010697]
[1767693606338,0.01103994,93529.0,93516.0,0.010697]
[1767693607148,0.02173494,93529.0,93516.0,0.010697]
[1767693607337,0.02173494,93529.0,93513.0,0.010697]
[1767693607532,0.09889869,93530.0,93512.0,0.09096]
[1767693607533,0.01103994,93523.0,93512.0,0.09096]
[1767693607732,0.09438474,93524.0,93512.0,0.09096]
[1767693607933,0.09889869,93530.0,93512.0,0.09096]
[1767693608537,0.09889869,93530.0,93517.0,0.010696]
[1767693608938,0.010695,93529.0,93514.0,0.010697]
[1767693609444,0.010695,93529.0,93514.0,0.004697]
[1767693609739,0.010695,93527.0,93514.0,0.004697]
[1767693610144,0.010695,93527.0,93513.0,0.010697]
[1767693610843,0.09438474,93535.0,93518.0,0.10481376]
[1767693610844,0.01103994,93535.0,93518.0,0.10481376]
[1767693611044,0.01103994,93535.0,93518.0,0.09390259]
[1767693611746,0.01103994,93535.0,93521.0,0.010696]
[1767693612241,0.01103994,93535.0,93518.0,0.10459859]
[1767693612638,0.01103994,93535.0,93520.0,0.010696]
[1767693613146,0.09096,93536.0,93524.0,0.010696]
[1767693614247,0.09096,93536.0,93521.0,0.010696]
[1767693614453,0.09096,93536.0,93525.0,0.010696]
[1767693615647,0.07158829,93536.0,93518.0,0.10481376]
[1767693615953,0.07158829,93536.0,93520.0,0.09390259]
[1767693617041,0.07158829,93536.0,93528.0,0.010695]
[1767693617243,0.07158829,93536.0,93521.0,0.09390259]
[1767693618144,2.9e-07,93536.0,93522.0,0.01091117]
[1767693618945,2.9e-07,93536.0,93526.0,0.010695]
[1767693619339,2.9e-07,93536.0,93523.0,0.010696]
[1767693619948,2.9e-07,93536.0,93525.0,0.010696]
[1767693622147,2.9e-07,93536.0,93522.0,0.02160717]
[1767693622348,2.9e-07,93536.0,93524.0,0.010696]
[1767693623653,0.010694,93535.0,93521.0,0.010696]
[1767693624751,0.010694,93535.0,93521.0,0.10459859]
[1767693624944,0.010694,93535.0,93521.0,0.09359859]
[1767693625147,0.010694,93535.0,93521.0,0.10429459]
[1767693625444,0.02173423,93536.0,93514.0,0.01091117]
[1767693625649,0.010695,93535.0,93518.0,0.01091117]
[1767693626150,0.010695,93535.0,93523.0,0.010696]
[1767693626742,0.010695,93534.0,93520.0,0.010696]
[1767693627455,0.010695,93532.0,93519.0,0.010696]
[1767693627849,0.0131781,93539.0,93519.0,0.010696]
[1767693628048,0.0131781,93539.0,93519.0,0.01091117]
[1767693628354,0.0131781,93539.0,93519.0,0.10481376]
[1767693628845,0.0131781,93539.0,93521.0,0.010696]
[1767693629957,0.010695,93533.0,93521.0,0.010696]
[1767693630159,0.010695,93531.0,93519.0,0.11550976]
[1767693630354,0.010694,93536.0,93524.0,0.10459859]
[1767693630657,0.010694,93536.0,93524.0,0.09390259]
[1767693630858,0.00213816,93539.0,93524.0,0.09390259]
[1767693632159,0.010694,93536.0,93524.0,0.09390259]
[1767693632660,0.010694,93536.0,93524.0,0.07490259]
[1767693633260,0.00213816,93539.0,93524.0,0.07490259]
[1767693633463,0.00213816,93539.0,93525.0,0.010696]
[1767693633464,0.01283216,93539.0,93525.0,0.010696]
[1767693633660,0.010694,93537.0,93524.0,0.09838584]
[1767693634762,0.00213816,93539.0,93526.0,0.12208057]
[1767693634969,0.00213816,93539.0,93528.0,0.09859832]
[1767693636559,0.00213816,93539.0,93531.0,0.01278725]
[1767693636758,0.09096,93542.0,93534.0,0.09859832]
[1767693637067,0.07718633,93542.0,93534.0,0.11138557]
[1767693638155,0.08788033,93542.0,93534.0,0.09859832]
[1767693639061,0.08788033,93542.0,93531.0,0.01278725]
[1767693639062,0.010694,93540.0,93529.0,0.09859832]
[1767693639470,0.07718633,93542.0,93529.0,0.09859832]
[1767693640367,0.07718633,93542.0,93529.0,0.07759832]
[1767693640861,0.010694,93541.0,93529.0,0.07759832]
[1767693641064,0.07718633,93542.0,93529.0,0.07759832]
[1767693642269,0.010694,93539.0,93529.0,0.07759832]
[1767693643173,0.07718633,93542.0,93529.0,0.07759832]
[1767693644178,0.010694,93535.0,93529.0,0.07759832]
[1767693644377,0.010694,93537.0,93529.0,0.07759832]
[1767693645785,0.07718633,93542.0,93529.0,0.07759832]
[1767693647490,0.010695,93532.0,93524.0,0.01278725]
[1767693648280,0.010695,93534.0,93524.0,0.01278725]
[1767693648779,0.010695,93534.0,93522.0,0.08474725]
[1767693649479,0.010695,93534.0,93522.0,0.18334557]
[1767693649881,0.010695,93534.0,93523.0,0.09859832]
[1767693650085,0.010694,93536.0,93523.0,0.09859832]
[1767693650786,0.010694,93536.0,93524.0,0.10726256]
[1767693651088,0.010694,93536.0,93525.0,0.00866424]
[1767693654100,0.010694,93539.0,93526.0,0.010695]
[1767693654388,0.07718633,93542.0,93507.0,0.00824355]
[1767693654389,0.10482352,93528.0,93507.0,0.00824355]
[1767693654588,0.09169158,93527.0,93510.0,0.09092]
[1767693654779,0.09169158,93527.0,93516.0,0.010697]
[1767693655080,0.09169158,93527.0,93511.0,0.09092]
[1767693655279,0.010696,93526.0,93513.0,0.010697]
[1767693655480,0.09169158,93527.0,93511.0,0.09092]
[1767693655687,0.010695,93526.0,93514.0,0.010697]
[1767693656089,0.09169158,93527.0,93514.0,0.010697]
[1767693656293,0.09169158,93527.0,93515.0,0.010697]
[1767693656496,0.10238658,93527.0,93511.0,0.09092]
[1767693656893,0.10238658,93527.0,93514.0,0.010697]
[1767693657394,0.010696,93526.0,93514.0,0.010697]
[1767693660496,0.010696,93526.0,93514.0,0.101617]
[1767693660697,0.010696,93526.0,93511.0,0.010697]
[1767693660898,0.010696,93526.0,93512.0,0.09092]
[1767693661201,0.010696,93523.0,93509.0,0.01283584]
[1767693661384,0.010696,93525.0,93511.0,0.010697]
[1767693661590,0.10607323,93527.0,93510.0,0.09092]
[1767693661789,0.10607323,93527.0,93513.0,0.010697]
[1767693662086,0.010696,93525.0,93510.0,0.101617]
[1767693662290,0.010696,93524.0,93510.0,0.101617]
[1767693662602,0.010696,93524.0,93511.0,0.010697]
[1767693663300,0.11676823,93527.0,93511.0,0.010697]
[1767693663988,0.11676823,93527.0,93513.0,0.010697]
[1767693664188,0.11676823,93527.0,93510.0,0.090617]
[1767693664591,0.10607323,93527.0,93517.0,0.010696]
[1767693664990,0.10607323,93527.0,93514.0,0.010697]
[1767693665392,0.10607323,93527.0,93515.0,0.010697]
[1767693665586,0.10607323,93527.0,93517.0,0.010696]
[1767693665783,0.10607323,93527.0,93510.0,0.090617]
[1767693666894,0.11676823,93527.0,93513.0,0.010697]
[1767693667399,0.11676823,93527.0,93514.0,0.010697]
[1767693669199,0.11676823,93527.0,93515.0,0.010697]
[1767693671292,0.0906886,93526.0,93515.0,0.010697]
[1767693671898,0.0906886,93526.0,93514.0,0.010697]
[1767693672098,0.1013846,93526.0,93514.0,0.010697]
[1767693672301,0.010696,93525.0,93514.0,0.010697]
[1767693672604,0.010696,93523.0,93512.0,0.010697]
[1767693672804,0.0906886,93524.0,93513.0,0.010697]
[1767693673805,0.0906886,93524.0,93510.0,0.089314]
[1767693673806,0.0906886,93524.0,93514.0,0.010697]
[1767693675008,0.0906886,93524.0,93510.0,0.089314]
[1767693675208,0.0906886,93524.0,93515.0,0.010697]
[1767693677205,0.0906886,93524.0,93516.0,0.010696]
[1767693677410,0.0906886,93524.0,93519.0,0.010696]
[1767693678819,0.0906886,93524.0,93511.0,0.010697]
[1767693679309,0.0906886,93524.0,93519.0,0.010696]
[1767693679513,6e-07,93524.0,93512.0,0.010697]
[1767693679820,0.01438165,93528.0,93518.0,0.010696]
[1767693681815,0.01438165,93526.0,93515.0,0.010697]
[1767693682012,0.02507765,93525.0,93513.0,0.010697]
[1767693682507,0.01438165,93521.0,93510.0,0.089314]
[1767693682712,0.01438165,93521.0,93510.0,0.100011]
[1767693684413,0.0906886,93522.0,93510.0,0.100011]
[1767693685321,0.0906886,93522.0,93511.0,0.09096]
[1767693686721,0.1013846,93522.0,93511.0,0.09096]
[1767693687024,0.010696,93521.0,93511.0,0.09096]
[1767693687410,0.0906886,93522.0,93511.0,0.06196]
[1767693687612,0.01438165,93515.0,93509.0,0.00213884]
[1767693687921,0.02507865,93515.0,93503.0,0.09096]
[1767693688428,0.01438165,93514.0,93503.0,0.09096]
[1767693689019,0.11576725,93512.0,93501.0,0.00010973]
[1767693689220,0.01438165,93510.0,93501.0,0.00010973]
[1767693689422,0.01438165,93510.0,93498.0,0.101659]
[1767693689611,0.01438165,93510.0,93500.0,0.010698]
[1767693690217,0.01438165,93505.0,93494.0,0.010699]
[1767693690421,0.01080095,93504.0,93493.0,0.09096]
[1767693690620,0.00010295,93504.0,93493.0,0.101659]
[1767693690817,0.0906886,93498.0,93482.0,0.09609325]
[1767693691116,0.10507025,93496.0,93483.0,0.0107]
[1767693691722,0.11576925,93496.0,93482.0,0.10166]
[1767693691919,0.1064258,93495.0,93482.0,0.10166]
[1767693692319,0.1064258,93495.0,93484.0,0.0107]
[1767693693322,0.1064258,93495.0,93486.0,0.0107]
[1767693694827,0.1064258,93495.0,93479.0,0.09309953]
[1767693695126,0.1064258,93493.0,93482.0,0.0107]
[1767693695322,0.1064258,93493.0,93479.0,0.07109953]
[1767693695526,0.1064258,93493.0,93481.0,0.0107]
[1767693695827,0.1064258,93493.0,93483.0,0.0107]
[1767693698425,0.1064258,93491.0,93471.0,0.01532504]
[1767693698727,0.00011684,93490.0,93479.0,0.010701]
[1767693699726,0.00011684,93490.0,93476.0,0.010701]
[1767693700027,0.00011684,93490.0,93470.0,0.09096]
[1767693700028,0.01554555,93485.0,93473.0,0.010701]
[1767693701531,0.1064258,93485.0,93473.0,0.010701]
[1767693702339,0.1064258,93484.0,93473.0,0.010701]
[1767693702836,0.1064258,93484.0,93470.0,0.101662]
[1767693703027,0.1171268,93481.0,93470.0,0.09096]
[1767693703227,0.1064258,93480.0,93470.0,0.09096]
[1767693703631,0.1064258,93480.0,93471.0,0.010702]
[1767693703835,0.09088025,93480.0,93471.0,0.010702]
[1767693707538,0.09088025,93478.0,93459.0,0.11783479]
[1767693707742,0.02624655,93481.0,93466.0,0.010702]
[1767693708036,0.01554555,93478.0,93463.0,0.010703]
[1767693708429,0.01554555,93478.0,93465.0,0.010702]
[1767693708630,0.01554555,93477.0,93465.0,0.010702]
[1767693708830,7.82e-05,93476.0,93465.0,0.010702]
[1767693709125,0.01554555,93475.0,93464.0,0.010703]
[1767693709436,0.01554555,93475.0,93461.0,0.010703]
[1767693709437,0.02624655,93475.0,93461.0,0.010703]
[1767693710138,0.01554555,93474.0,93461.0,0.010703]
[1767693710435,0.01554555,93474.0,93457.0,1.0158]
[1767693710436,0.010702,93471.0,93457.0,1.013503]
[1767693710636,0.010702,93471.0,93458.0,0.010703]
[1767693711139,0.01554555,93472.0,93458.0,0.010703]
[1767693711338,0.010702,93471.0,93457.0,0.101663]
[1767693713336,0.01554555,93472.0,93459.0,0.010703]
[1767693713642,0.02624755,93472.0,93459.0,0.010703]
[1767693714740,0.01554555,93472.0,93459.0,0.010703]
[1767693714936,0.01554555,93472.0,93461.0,0.010703]
[1767693718139,0.01554555,93472.0,93457.0,0.083663]
[1767693718946,0.02624755,93472.0,93458.0,0.010703]
[1767693719138,0.01554555,93471.0,93458.0,0.010703]
[1767693720141,0.01554555,93468.0,93456.0,0.010703]
[1767693720336,0.01554555,93468.0,93454.0,0.091]
[1767693720538,0.09903292,93470.0,93460.0,0.010703]
[1767693720736,0.01554555,93472.0,93460.0,0.010703]
[1767693722341,0.01554555,93472.0,93454.0,0.091]
[1767693722648,0.010702,93471.0,93458.0,0.010703]
[1767693723251,0.09903292,93470.0,93458.0,0.010703]
[1767693723950,0.010702,93471.0,93458.0,0.010703]
[1767693724244,0.01668582,93471.0,93454.0,0.091]
[1767693724450,0.01668582,93473.0,93462.0,0.010703]
[1767693725049,0.01668582,93473.0,93463.0,0.010703]
[1767693726144,0.01668582,93473.0,93454.0,0.20405508]
[1767693726343,0.09088025,93474.0,93455.0,0.11335208]
[1767693726748,0.10732862,93474.0,93455.0,0.11335208]
[1767693727551,7.82e-05,93476.0,93457.0,0.11335208]
[1767693727749,7.82e-05,93476.0,93466.0,0.010702]
[1767693728543,7.82e-05,93476.0,93463.0,0.010703]
[1767693728743,0.02722757,93476.0,93463.0,0.010703]
[1767693729550,0.01644837,93475.0,93463.0,0.010703]
[1767693730153,0.01644837,93475.0,93464.0,0.010702]
[1767693730350,7.82e-05,93476.0,93464.0,0.010702]
[1767693731056,0.01644837,93475.0,93465.0,0.010702]
[1767693732548,0.01644837,93475.0,93462.0,0.010703]
[1767693732949,0.01644837,93475.0,93463.0,0.010703]
[1767693733656,0.01644837,93475.0,93457.0,0.08568492]
[1767693734058,0.01644837,93475.0,93464.0,0.010702]
[1767693735761,0.01644837,93475.0,93464.0,0.010703]
[1767693736060,0.01644837,93475.0,93462.0,0.010703]
[1767693736250,0.02714937,93475.0,93462.0,0.010703]
[1767693737265,0.02714937,93475.0,93457.0,0.08568492]
[1767693737266,0.01644837,93475.0,93457.0,0.10105508]
[1767693737561,0.010701,93474.0,93461.0,0.010703]
[1767693737750,7.82e-05,93476.0,93458.0,0.11335208]
[1767693737949,0.01652657,93476.0,93460.0,0.09903292]
[1767693738356,7.82e-05,93476.0,93461.0,0.01537016]
[1767693738563,7.82e-05,93476.0,93469.0,0.010702]
[1767693738750,0.09096,93481.0,93469.0,0.010702]
[1767693739163,0.01644837,93491.0,93470.0,0.01537016]
[1767693739352,0.0107,93489.0,93474.0,0.010701]
[1767693739757,5.711e-05,93488.0,93474.0,0.010701]
[1767693740159,0.09934608,93492.0,93470.0,0.09903292]
[1767693740160,0.01283584,93509.0,93483.0,0.0107]
[1767693740361,0.010698,93500.0,93484.0,0.12405208]
[1767693740660,0.010698,93500.0,93485.0,0.0107]
[1767693740864,0.010698,93503.0,93487.0,0.0107]
[1767693741054,0.010698,93501.0,93486.0,0.01537016]
[1767693741373,0.010698,93501.0,93475.0,0.101701]
[1767693741374,0.10744837,93508.0,93490.0,0.10973192]
[1767693741552,0.010698,93505.0,93490.0,0.09903292]
[1767693742554,0.010698,93505.0,93490.0,0.19701484]
[1767693742966,0.010698,93505.0,93490.0,0.09798192]
[1767693743356,0.010698,93503.0,93490.0,0.09798192]
[1767693743754,0.010698,93503.0,93490.0,0.19701484]
[1767693744855,0.010698,93503.0,93490.0,0.11335208]
[1767693745055,0.010698,93503.0,93490.0,0.212385]
[1767693745266,0.010698,93501.0,93490.0,0.19701484]
[1767693745662,0.010698,93501.0,93490.0,0.09798192]
[1767693746757,0.10744837,93508.0,93490.0,0.19701484]
[1767693747054,0.010698,93501.0,93490.0,0.19701484]
[1767693747263,0.01644837,93507.0,93490.0,0.09798192]
[1767693747451,0.01644837,93505.0,93485.0,0.09798192]
[1767693747656,0.010699,93499.0,93485.0,0.09798192]
[1767693747955,0.010699,93499.0,93485.0,0.11335208]
[1767693748466,0.010699,93499.0,93485.0,0.12405208]
[1767693748659,0.010698,93502.0,93485.0,0.12405208]
[1767693748858,0.010698,93502.0,93489.0,0.11335208]
[1767693749060,0.010698,93502.0,93489.0,0.09835208]
[1767693749263,0.010698,93500.0,93489.0,0.09835208]
[1767693749462,0.010698,93500.0,93489.0,0.09798192]
[1767693750977,0.010699,93498.0,93489.0,0.09798192]
[1767693753070,0.010699,93496.0,93489.0,0.09798192]
[1767693755172,0.010698,93507.0,93489.0,0.09798192]
[1767693755173,0.0258359,93507.0,93489.0,0.09798192]
[1767693755367,0.0258359,93507.0,93475.0,0.091]
[1767693755368,0.09313884,93509.0,93491.0,0.11154389]
[1767693755575,0.09313884,93509.0,93495.0,0.11154389]
[1767693755869,0.010698,93502.0,93495.0,0.09700363]
[1767693756070,0.010698,93501.0,93490.0,0.19603655]
[1767693756272,0.010699,93499.0,93490.0,0.19603655]
[1767693756477,0.0151379,93508.0,93490.0,0.09700363]
[1767693756662,0.0107,93488.0,93484.0,0.09096]
[1767693756861,0.0107,93488.0,93474.0,0.09721926]
[1767693756862,0.0107,93488.0,93477.0,0.01454026]
[1767693757060,0.0107,93488.0,93474.0,0.09721926]
[1767693757061,0.0107,93488.0,93478.0,0.10550026]
[1767693757270,0.0107,93486.0,93479.0,0.01454026]
[1767693757975,0.0107,93489.0,93479.0,0.01454026]
[1767693758274,0.010699,93491.0,93479.0,0.01454026]
[1767693758474,0.010699,93491.0,93480.0,0.11357318]
[1767693758777,0.11417082,93510.0,93489.0,0.01454026]
[1767693758973,0.010699,93498.0,93489.0,0.01454026]
[1767693759276,0.010698,93501.0,93490.0,0.01454026]
[1767693759476,0.010698,93501.0,93490.0,0.11357318]
[1767693759876,0.010698,93508.0,93490.0,0.11357318]
[1767693760567,0.010699,93498.0,93490.0,0.11357318]
[1767693760767,0.010699,93498.0,93490.0,0.01454026]
[1767693760971,0.010699,93498.0,93489.0,0.09700363]
[1767693763577,0.010699,93496.0,93489.0,0.09700363]
[1767693764577,0.010699,93496.0,93487.0,0.01454026]
[1767693769472,0.11023233,93507.0,93487.0,0.09700363]
[1767693769678,0.010698,93502.0,93491.0,0.01454026]
[1767693770077,0.010699,93500.0,93491.0,0.01454026]
[1767693771380,0.010698,93503.0,93491.0,0.01454026]
[1767693771581,0.010698,93501.0,93491.0,0.01454026]
[1767693772081,0.010698,93508.0,93498.0,0.01454026]
[1767693772285,8.4e-07,93509.0,93498.0,0.18957681]
[1767693772487,0.09096,93521.0,93509.0,0.010697]
[1767693772676,0.010696,93523.0,93510.0,0.09903292]
[1767693773686,0.010696,93526.0,93511.0,0.010697]
[1767693774587,0.010696,93524.0,93511.0,0.010697]
[1767693775777,0.010696,93524.0,93511.0,0.02179598]
[1767693776384,0.010696,93524.0,93511.0,0.01109898]
[1767693776774,0.09096,93527.0,93511.0,0.01109898]
[1767693776775,0.010696,93522.0,93511.0,0.01109898]
[1767693776976,0.10817316,93524.0,93504.0,0.01093051]
[1767693777177,0.01631111,93523.0,93504.0,0.01093051]
[1767693777485,0.010697,93514.0,93504.0,0.01093051]
[1767693778384,0.010697,93517.0,93504.0,0.01093051]
[1767693778684,0.010696,93518.0,93504.0,0.01093051]
[1767693779488,0.01631111,93523.0,93504.0,0.01093051]
[1767693779996,0.01631111,93523.0,93504.0,0.00193051]
[1767693780182,0.010697,93515.0,93504.0,0.00193051]
[1767693780682,0.01631111,93523.0,93505.0,0.09096]
[1767693780989,0.010696,93518.0,93505.0,0.09096]
[1767693781381,0.010697,93516.0,93505.0,0.09096]
[1767693781885,0.010697,93516.0,93503.0,0.09253462]
[1767693782086,0.010697,93516.0,93504.0,0.09213307]
[1767693782293,0.010697,93513.0,93504.0,0.09096]
[1767693782586,0.010697,93516.0,93504.0,0.09096]
[1767693782798,0.010697,93516.0,93504.0,0.09224872]
[1767693784789,0.010697,93516.0,93505.0,0.00130145]
[1767693784989,0.09186205,93524.0,93505.0,0.01199945]
[1767693786284,0.01638268,93525.0,93507.0,0.010698]
[1767693786486,0.010696,93522.0,93507.0,0.01183172]
[1767693787386,0.010696,93522.0,93509.0,0.010697]
[1767693787690,0.010696,93522.0,93507.0,0.00113372]
[1767693787892,0.10734268,93527.0,93508.0,0.010697]
[1767693788492,0.010696,93521.0,93508.0,0.010697]
[1767693788793,0.01638268,93526.0,93507.0,0.00113372]
[1767693788994,0.010696,93519.0,93507.0,0.00113372]
[1767693790194,0.010696,93521.0,93507.0,0.00113372]
[1767693790392,0.010696,93521.0,93508.0,0.010698]
[1767693792096,0.010696,93520.0,93505.0,0.010698]
[1767693792595,0.010696,93518.0,93505.0,0.010698]
[1767693792794,0.01638268,93525.0,93505.0,0.010698]
[1767693793593,0.10782104,93525.0,93505.0,0.010698]
[1767693793793,0.01638268,93524.0,93505.0,0.010698]
[1767693795098,0.010696,93520.0,93505.0,0.010698]
[1767693795296,0.010696,93519.0,93506.0,0.010698]
[1767693795487,0.010696,93519.0,93504.0,0.084658]
[1767693795882,0.010696,93521.0,93504.0,0.084658]
[1767693796088,0.010696,93521.0,93508.0,0.010697]
[1767693797102,0.010696,93519.0,93505.0,0.010698]
[1767693797600,0.010696,93519.0,93506.0,0.010698]
[1767693799303,0.010696,93519.0,93505.0,0.010698]
[1767693800502,0.010697,93517.0,93505.0,0.010698]
[1767693802404,0.010697,93517.0,93504.0,0.17925593]
[1767693802798,0.010697,93517.0,93504.0,0.084658]
[1767693803102,0.010697,93517.0,93504.0,0.046658]
[1767693803297,0.01638268,93520.0,93504.0,0.046658]
[1767693804105,0.09143836,93521.0,93504.0,0.046658]
[1767693804703,0.010697,93517.0,93504.0,0.046658]
[1767693805390,0.010697,93515.0,93504.0,0.046658]
[1767693805995,0.010697,93515.0,93502.0,0.00017195]
[1767693806191,0.09143836,93521.0,93503.0,0.09096]
[1767693806192,0.01638268,93516.0,93503.0,0.09096]
[1767693806390,0.01638268,93516.0,93496.0,0.010699]
[1767693806595,0.010697,93510.0,93503.0,0.09096]
[1767693807709,0.01638268,93510.0,93503.0,0.09096]
[1767693808008,0.10213536,93511.0,93503.0,0.09096]
[1767693808305,0.010697,93511.0,93503.0,0.09096]
[1767693809002,0.010697,93513.0,93503.0,0.09096]
[1767693810900,0.010697,93512.0,93503.0,0.03496]
[1767693811508,0.010697,93511.0,93503.0,0.03496]
[1767693813510,0.010697,93513.0,93503.0,0.03496]
[1767693817111,0.010697,93511.0,93503.0,0.03496]
[1767693817610,0.010697,93511.0,93500.0,0.07690794]
[1767693817811,0.01552375,93515.0,93500.0,0.07690794]
[1767693818406,0.010697,93509.0,93500.0,0.07690794]
[1767693818607,0.01552375,93515.0,93500.0,0.06790794]
[1767693819113,0.010697,93509.0,93500.0,0.06790794]
[1767693819307,0.010697,93509.0,93499.0,0.09096]
[1767693819805,0.010697,93511.0,93499.0,0.09096]
[1767693820012,0.010697,93509.0,93499.0,0.09096]
[1767693821215,0.010697,93511.0,93499.0,0.09096]
[1767693821513,0.010697,93511.0,93499.0,0.1023247]
[1767693822314,0.010697,93513.0,93500.0,0.010698]
[1767693823218,0.010697,93512.0,93499.0,0.0916257]
[1767693823813,0.010697,93512.0,93499.0,0.0006657]
[1767693824010,0.01552375,93518.0,93499.0,0.0916257]
[1767693824315,0.01552375,93522.0,93508.0,0.010697]
[1767693824504,0.010696,93521.0,93508.0,0.010697]
[1767693825711,0.01552375,93522.0,93502.0,8.724e-05]
[1767693825911,0.010696,93523.0,93502.0,0.09336538]
[1767693826110,0.02621975,93523.0,93509.0,0.010697]
[1767693826305,0.02621975,93523.0,93502.0,0.08606238]
[1767693827220,0.02621975,93523.0,93509.0,0.010697]
[1767693827519,0.02621975,93523.0,93506.0,0.010698]
[1767693827711,0.010696,93519.0,93506.0,0.010698]
[1767693828021,0.01552375,93521.0,93508.0,0.010697]
[1767693828618,0.01552375,93521.0,93510.0,0.010697]
[1767693829818,0.09986393,93522.0,93510.0,0.010697]
[1767693830623,0.09986393,93522.0,93506.0,0.010698]
[1767693831524,0.11055993,93522.0,93506.0,0.010698]
[1767693831825,0.010696,93520.0,93506.0,0.010698]
[1767693832726,0.010696,93520.0,93507.0,0.010698]
[1767693833516,0.010696,93520.0,93504.0,0.010698]
[1767693834024,0.010696,93520.0,93502.0,0.06976038]
[1767693834526,0.010696,93520.0,93506.0,0.010698]
[1767693835721,0.010696,93519.0,93504.0,0.010698]
[1767693835927,0.010696,93519.0,93503.0,0.07701812]
[1767693836616,0.010696,93518.0,93503.0,0.08771612]
[1767693836911,0.010696,93518.0,93505.0,0.010698]
[1767693837117,0.010696,93518.0,93503.0,0.08771612]
[1767693837311,0.01596874,93521.0,93503.0,0.08771612]
[1767693838129,0.010696,93518.0,93503.0,0.08771612]
[1767693840533,0.010697,93517.0,93503.0,0.08771612]
[1767693841430,0.010697,93515.0,93503.0,0.08771612]
[1767693841731,0.010697,93515.0,93503.0,0.07171612]
[1767693841921,0.010697,93517.0,93503.0,0.07171612]
[1767693842122,0.010696,93519.0,93505.0,0.10920286]
[1767693842322,0.010696,93519.0,93507.0,0.010698]
[1767693842623,0.010696,93519.0,93505.0,0.10920286]